bitfinex-derivatives/quotes_BTCF0:USTF0_20210105
["timestamp","ask_amount","ask_price","bid_price","bid_amount"]
[1609869577019,0.2859,32757.0,32697.0,0.10494]
[1609869577020,0.13632608,32709.0,32697.0,0.10494]
[1609869577421,3.7819,32708.0,32697.0,0.10494]
[1609869577622,0.13632608,32709.0,32697.0,0.10494]
[1609869577821,4.91894,32705.0,32697.0,0.10494]
[1609869578021,4.91894,32705.0,32684.0,1.99916464]
[1609869578223,4.91894,32705.0,32672.0,2.00811078]
[1609869578622,4.91894,32705.0,32666.0,3.6838]
[1609869578822,0.14164,32705.0,32661.0,2.10361941]
[1609869579024,0.14164,32705.0,32704.0,0.13632608]
[1609869579823,0.281,32713.0,32704.0,0.13632608]
[1609869580423,0.1104,32714.0,32704.0,0.13632608]
[1609869581023,0.1104,32714.0,32713.0,0.13632608]
[1609869581225,0.13632608,32730.0,32713.0,0.13632608]
[1609869581625,0.2866,32747.0,32713.0,0.13632608]
[1609869582224,0.2802,32750.0,32713.0,0.13632608]
[1609869582426,0.2802,32750.0,32713.0,0.26136608]
[1609869582625,0.2802,32750.0,32714.0,0.0919]
[1609869582828,0.2986,32758.0,32714.0,0.0919]
[1609869583025,0.2986,32758.0,32752.0,0.13632608]
[1609869583627,0.2986,32758.0,32730.0,0.10264]
[1609869585027,0.2986,32758.0,32756.0,0.13632608]
[1609869586928,0.13632608,32757.0,32756.0,0.13632608]
[1609869589033,0.13632608,32757.0,32752.0,0.13632608]
[1609869589548,0.12717,32767.0,32752.0,0.13632608]
[1609869590342,0.2804,32780.0,32752.0,0.13632608]
[1609869590941,0.2804,32780.0,32770.0,0.13632608]
[1609869591740,0.2804,32780.0,32752.0,4.2827]
[1609869592141,0.39364,32780.0,32752.0,4.2827]
[1609869592342,0.39364,32780.0,32747.0,0.14011]
[1609869592944,0.39364,32780.0,32756.0,0.13632608]
[1609869594947,0.13632608,32757.0,32756.0,0.13632608]
[1609869595145,0.26131608,32757.0,32756.0,0.13632608]
[1609869595344,0.26131608,32757.0,32748.0,0.01071221]
[1609869596943,0.13632608,32749.0,32748.0,0.01071221]
[1609869597341,0.27992608,32749.0,32748.0,0.01071221]
[1609869598942,0.27992608,32749.0,32748.0,0.14703829]
[1609869600544,0.1436,32749.0,32748.0,0.14703829]
[1609869600744,0.12499,32757.0,32748.0,0.14703829]
[1609869600944,0.13632608,32772.0,32756.0,0.13632608]
[1609869601344,0.26048608,32772.0,32756.0,0.13632608]
[1609869603045,0.12416,32772.0,32770.0,0.13632608]
[1609869606049,0.11324,32780.0,32770.0,0.13632608]
[1609869606447,0.5688,32799.0,32770.0,0.13632608]
[1609869607047,0.5688,32799.0,32785.0,0.13632608]
[1609869609048,0.5688,32799.0,32789.0,0.13632608]
[1609869610953,0.5688,32799.0,32769.0,0.11026]
[1609869610954,0.5688,32799.0,32776.0,0.1336]
[1609869611154,0.13632608,32790.0,32779.0,0.13632608]
[1609869611354,0.27623608,32790.0,32779.0,0.13632608]
[1609869611953,0.27623608,32790.0,32762.0,3.6201]
[1609869612956,0.27623608,32790.0,32748.0,0.10241221]
[1609869613156,0.13991,32790.0,32770.0,0.13632608]
[1609869613358,0.13991,32790.0,32751.0,0.10891]
[1609869614659,0.13991,32790.0,32752.0,3.9173]
[1609869615062,0.13991,32790.0,32769.0,0.13632608]
[1609869616462,0.6589,32799.0,32769.0,0.13632608]
[1609869617062,0.13632608,32770.0,32769.0,0.13632608]
[1609869618462,0.13476,32774.0,32769.0,0.13632608]
[1609869618762,0.05276,32774.0,32773.0,3.7481]
[1609869618963,0.5688,32799.0,32773.0,3.7481]
[1609869619162,0.5688,32799.0,32798.0,0.13632608]
[1609869619363,0.2876,32799.0,32798.0,0.13632608]
[1609869620165,0.2876,32799.0,32792.0,4.5343]
[1609869620366,0.41568,32799.0,32792.0,4.5343]
[1609869620766,0.41568,32799.0,32753.0,1.97122312]
[1609869620966,0.41568,32799.0,32781.0,3.6534]
[1609869621167,0.41568,32799.0,32789.0,0.13632608]
[1609869623168,0.41568,32799.0,32798.0,0.13632608]
[1609869625171,0.55200608,32799.0,32798.0,0.13632608]
[1609869625670,0.55200608,32799.0,32790.0,4.8188]
[1609869626470,0.41568,32799.0,32790.0,4.8188]
[1609869626872,0.12808,32799.0,32790.0,4.8188]
[1609869627073,0.02,32800.0,32799.0,0.87192]
[1609869627271,0.02,32800.0,32799.0,4.37112]
[1609869630777,0.02,32800.0,32799.0,4.46362]
[1609869631280,0.02,32800.0,32799.0,4.37112]
[1609869632181,0.14692279,32812.0,32799.0,4.37112]
[1609869632581,0.14692279,32812.0,32799.0,0.87192]
[1609869633180,0.01059671,32812.0,32799.0,0.87192]
[1609869635085,0.01059671,32812.0,32800.0,0.13632608]
[1609869637185,0.01059671,32812.0,32810.0,0.13632608]
[1609869639184,0.13632608,32811.0,32810.0,0.13632608]
[1609869639385,0.27057608,32811.0,32810.0,0.13632608]
[1609869643594,0.27057608,32811.0,32810.0,0.64862608]
[1609869646095,0.27057608,32811.0,32810.0,0.13632608]
[1609869646994,0.27057608,32811.0,32803.0,0.14717]
[1609869647196,0.13632608,32804.0,32803.0,0.14717]
[1609869647998,0.13632608,32804.0,32803.0,0.23907]
[1609869648196,0.13632608,32804.0,32803.0,0.14717]
[1609869649795,0.13632608,32804.0,32802.0,0.13632608]
[1609869649996,0.04122608,32804.0,32802.0,0.13632608]
[1609869650396,0.01059671,32812.0,32802.0,0.13632608]
[1609869650799,0.01059671,32812.0,32803.0,0.6041]
[1609869650997,0.01059671,32812.0,32803.0,0.10458]
[1609869651196,0.01059671,32812.0,32809.0,0.13632608]
[1609869653999,0.01059671,32812.0,32809.0,0.22712608]
[1609869655100,0.01059671,32812.0,32809.0,0.13632608]
[1609869657303,0.13632608,32810.0,32809.0,0.13632608]
[1609869658806,0.13632608,32810.0,32803.0,0.10458]
[1609869659206,0.13632608,32804.0,32801.0,0.01071221]
[1609869660208,0.24438608,32804.0,32801.0,0.01071221]
[1609869660809,0.24438608,32804.0,32800.0,0.57273221]
[1609869661209,0.23378937,32804.0,32800.0,0.57273221]
[1609869662110,0.23378937,32804.0,32800.0,0.53613221]
[1609869662311,0.23378937,32804.0,32768.0,1.99469774]
[1609869662510,3.6326,32801.0,32768.0,7.07009774]
[1609869663013,3.6326,32801.0,32768.0,5.0754]
[1609869663213,3.6326,32801.0,32770.0,0.13632608]
[1609869663415,3.6326,32801.0,32768.0,5.0754]
[1609869663616,0.0914,32800.0,32768.0,5.0754]
[1609869664716,0.0901,32799.0,32768.0,5.0754]
[1609869665316,0.0901,32799.0,32773.0,0.13632608]
[1609869666420,3.6326,32801.0,32773.0,0.13632608]
[1609869667321,3.6326,32801.0,32782.0,0.13632608]
[1609869669123,0.10806,32804.0,32782.0,0.13632608]
[1609869669323,0.1133,32820.0,32795.0,0.13632608]
[1609869669723,0.1133,32820.0,32774.0,4.9497]
[1609869669925,0.22469,32811.0,32774.0,4.9497]
[1609869670423,0.13329,32811.0,32774.0,4.9497]
[1609869671225,0.13329,32811.0,32775.0,0.0927]
[1609869671424,0.13329,32811.0,32802.0,0.13632608]
[1609869673224,0.1133,32820.0,32802.0,0.13632608]
[1609869673423,0.1133,32820.0,32811.0,0.13632608]
[1609869675426,0.14692279,32812.0,32811.0,0.13632608]
[1609869675825,0.01059671,32812.0,32811.0,0.13632608]
[1609869678030,0.24962608,32820.0,32811.0,0.13632608]
[1609869679031,0.24962608,32820.0,32804.0,0.11605]
[1609869679431,0.1133,32820.0,32809.0,0.13632608]
[1609869679632,0.1133,32820.0,32804.0,0.11605]
[1609869679633,0.1133,32820.0,32799.0,2.01830117]
[1609869679832,0.1133,32820.0,32797.0,0.1288]
[1609869679833,0.1133,32820.0,32797.0,2.14900731]
[1609869680433,0.1133,32820.0,32797.0,2.02020731]
[1609869681435,0.1133,32820.0,32818.0,0.13632608]
[1609869682238,0.1133,32820.0,32807.0,3.6312]
[1609869683339,0.1133,32820.0,32810.0,0.13632608]
[1609869685452,0.13632608,32811.0,32810.0,0.13632608]
[1609869686645,0.1133,32820.0,32810.0,0.13632608]
[1609869687044,0.1133,32820.0,32804.0,0.125]
[1609869687243,0.1133,32820.0,32796.0,2.02449693]
[1609869687445,0.1133,32820.0,32804.0,0.13632608]
[1609869689549,0.1133,32820.0,32815.0,0.13632608]
[1609869689749,0.1133,32820.0,32802.0,4.0624]
[1609869691550,0.13632608,32811.0,32809.0,0.13632608]
[1609869693151,0.282,32826.0,32809.0,0.13632608]
[1609869693352,0.282,32826.0,32811.0,0.554]
[1609869693553,0.13632608,32820.0,32818.0,0.13632608]
[1609869694553,0.13632608,32820.0,32811.0,0.554]
[1609869695554,0.282,32826.0,32818.0,0.13632608]
[1609869697554,0.21501249,32819.0,32818.0,0.13632608]
[1609869704765,0.07868641,32819.0,32818.0,0.13632608]
[1609869705967,0.07868641,32819.0,32818.0,3.99592608]
[1609869706568,0.07868641,32819.0,32818.0,0.13632608]
[1609869707571,0.07868641,32819.0,32817.0,0.11186]
[1609869707572,0.30751249,32819.0,32817.0,0.11186]
[1609869707771,4.8668,32818.0,32809.0,0.11509]
[1609869707970,4.8668,32818.0,32802.0,2.03244617]
[1609869708571,4.9701,32818.0,32802.0,2.03244617]
[1609869708771,4.9701,32818.0,32792.0,2.03836068]
[1609869708971,0.0905,32817.0,32792.0,2.03836068]
[1609869709472,0.0905,32817.0,32795.0,0.13632608]
[1609869710873,4.9701,32818.0,32795.0,0.13632608]
[1609869711674,0.13632608,32796.0,32795.0,0.13632608]
[1609869712074,0.13632608,32796.0,32782.0,0.10472]
[1609869712674,0.13632608,32796.0,32776.0,2.04268215]
[1609869712874,4.9629,32784.0,32776.0,2.04268215]
[1609869713274,0.12526,32790.0,32773.0,2.04540924]
[1609869713474,0.12526,32790.0,32773.0,1.68710924]
[1609869713675,5.31540608,32774.0,32773.0,1.32870924]
[1609869713875,5.31540608,32774.0,32773.0,0.95840924]
[1609869714076,5.31540608,32774.0,32745.0,2.2297338]
[1609869715276,0.0919,32773.0,32745.0,2.2297338]
[1609869715476,4.8057,32756.0,32745.0,2.2297338]
[1609869715676,0.13632608,32749.0,32745.0,2.2297338]
[1609869716679,0.26068608,32749.0,32745.0,2.2297338]
[1609869716879,0.26068608,32749.0,32733.0,2.23526762]
[1609869717280,3.72458608,32749.0,32733.0,2.23526762]
[1609869717680,3.72458608,32749.0,32735.0,0.13632608]
[1609869717879,3.72458608,32749.0,32748.0,1.221e-05]
[1609869718280,0.26068608,32749.0,32733.0,2.23526762]
[1609869718480,3.6497,32739.0,32733.0,2.23526762]
[1609869719482,0.14945,32741.0,32733.0,2.12206762]
[1609869719681,0.13632608,32734.0,32733.0,0.39956762]
[1609869719883,5.1302,32730.0,32705.0,2.41888295]
[1609869720981,5.2218,32730.0,32705.0,2.41888295]
[1609869721581,0.13632608,32706.0,32705.0,2.41888295]
[1609869722381,0.84442608,32706.0,32705.0,2.41888295]
[1609869722984,0.13632608,32706.0,32705.0,2.41888295]
[1609869724884,0.13632608,32706.0,32687.0,0.13632608]
[1609869725083,0.13632608,32706.0,32691.0,4.5981]
[1609869725284,0.10241608,32710.0,32691.0,4.5981]
[1609869725486,0.10241608,32710.0,32690.0,0.14573]
[1609869726486,3.7462,32721.0,32690.0,0.14573]
[1609869727391,0.0926,32732.0,32690.0,0.14573]
[1609869727587,0.13632608,32703.0,32700.0,0.13632608]
[1609869727789,0.13632608,32703.0,32690.0,0.14573]
[1609869729591,0.13632608,32696.0,32690.0,0.28205608]
[1609869729790,0.13632608,32696.0,32690.0,0.14573]
[1609869730593,0.13632608,32696.0,32668.0,3.988]
[1609869730792,0.13632608,32696.0,32615.0,0.1771]
[1609869730990,0.13632608,32696.0,32652.0,4.3567]
[1609869731192,0.26760608,32696.0,32652.0,4.3567]
[1609869731592,0.13128,32696.0,32680.0,0.13632608]
[1609869733695,0.13632608,32681.0,32680.0,0.13632608]
[1609869734596,0.13128,32696.0,32680.0,0.13632608]
[1609869734597,0.05692,32696.0,32680.0,0.13632608]
[1609869735196,0.05692,32696.0,32681.0,0.091]
[1609869735396,0.05692,32696.0,32680.0,0.13632608]
[1609869735598,0.13632608,32703.0,32695.0,0.13632608]
[1609869736599,0.0911,32704.0,32695.0,0.13632608]
[1609869736800,0.01297152,32710.0,32695.0,0.13632608]
[1609869737001,0.01297152,32710.0,32696.0,0.0911]
[1609869737201,0.54065996,32712.0,32696.0,0.0911]
[1609869737401,0.36682763,32712.0,32696.0,0.0911]
[1609869737601,0.36682763,32712.0,32711.0,0.13632608]
[1609869737801,0.36682763,32712.0,32711.0,0.25952608]
[1609869738805,0.29008355,32713.0,32711.0,0.25952608]
[1609869739203,0.12138355,32713.0,32711.0,0.25952608]
[1609869739605,0.13632608,32732.0,32711.0,0.25952608]
[1609869741605,0.13632608,32732.0,32731.0,0.13632608]
[1609869743608,0.13632608,32732.0,32721.0,0.13632608]
[1609869743808,0.13632608,32732.0,32711.0,0.1232]
[1609869744008,0.27454608,32732.0,32711.0,0.1232]
[1609869744208,0.27454608,32732.0,32687.0,3.8322]
[1609869745708,0.13822,32732.0,32719.0,0.13632608]
[1609869747609,0.13822,32732.0,32731.0,0.13632608]
[1609869748810,0.13822,32732.0,32715.0,0.09615]
[1609869749209,0.2955,32744.0,32715.0,0.09615]
[1609869749410,0.0904,32734.0,32715.0,0.09615]
[1609869749610,0.0904,32734.0,32730.0,0.13632608]
[1609869750011,0.0904,32734.0,32715.0,0.09615]
[1609869750612,0.0904,32734.0,32704.0,0.13767]
[1609869751013,0.0904,32734.0,32695.0,3.4983]
[1609869751212,0.0904,32734.0,32696.0,0.091]
[1609869751411,0.0904,32734.0,32696.0,0.18786]
[1609869751812,0.0904,32734.0,32727.0,0.13632608]
[1609869752011,0.0904,32734.0,32710.0,4.6188]
[1609869753212,0.0904,32734.0,32710.0,4.7114]
[1609869753413,0.0904,32734.0,32710.0,0.0926]
[1609869753615,0.0904,32734.0,32720.0,3.8162]
[1609869753813,0.13954,32743.0,32733.0,0.13632608]
[1609869755815,0.13954,32743.0,32742.0,0.13632608]
[1609869756616,0.13954,32743.0,32730.0,0.11488]
[1609869757719,0.13954,32743.0,32740.0,0.13632608]
[1609869758822,0.2895,32761.0,32740.0,0.13632608]
[1609869759820,0.13632608,32750.0,32747.0,0.13632608]
[1609869760020,0.28346608,32750.0,32747.0,0.13632608]
[1609869760421,0.14714,32750.0,32747.0,0.13632608]
[1609869760820,4e-05,32750.0,32747.0,0.13632608]
[1609869761022,0.11737,32758.0,32747.0,0.13632608]
[1609869761823,0.11737,32758.0,32757.0,0.13632608]
[1609869763426,0.11737,32758.0,32742.0,0.10005]
[1609869763824,0.25369608,32758.0,32754.0,0.13632608]
[1609869769129,0.25369608,32758.0,32742.0,0.10005]
[1609869769328,4.3681,32757.0,32742.0,0.10005]
[1609869769528,4.3681,32757.0,32722.0,3.8622]
[1609869769728,4.3681,32757.0,32737.0,0.13632608]
[1609869770128,4.3681,32757.0,32722.0,3.8622]
[1609869770328,4.3681,32757.0,32704.0,3.5542]
[1609869770329,4.1369,32747.0,32704.0,3.5542]
[1609869770529,4.2749,32747.0,32704.0,3.5542]
[1609869771229,0.2716,32746.0,32704.0,3.5542]
[1609869771831,0.2716,32746.0,32732.0,0.13632608]
[1609869772431,0.3639,32746.0,32732.0,0.13632608]
[1609869772832,0.2716,32746.0,32732.0,0.13632608]
[1609869773535,0.2716,32746.0,32709.0,0.12434]
[1609869773735,0.2716,32746.0,32726.0,0.13632608]
[1609869773937,0.0926,32745.0,32726.0,0.13632608]
[1609869774138,0.2716,32746.0,32726.0,0.13632608]
[1609869774336,0.2716,32746.0,32709.0,0.12434]
[1609869775137,0.2716,32746.0,32710.0,0.093]
[1609869775337,0.138,32747.0,32717.0,3.5723]
[1609869775538,0.55367396,32751.0,32717.0,3.69484]
[1609869775739,0.66439748,32753.0,32717.0,3.69484]
[1609869775740,0.13632608,32747.0,32742.0,0.13632608]
[1609869775939,0.27967608,32747.0,32742.0,0.13632608]
[1609869777839,0.13632608,32743.0,32742.0,0.13632608]
[1609869778740,0.13632608,32743.0,32717.0,3.69484]
[1609869779343,0.13632608,32743.0,32717.0,3.60304]
[1609869779841,0.13632608,32743.0,32742.0,0.13632608]
[1609869780843,0.13632608,32743.0,32717.0,3.60304]
[1609869781043,0.13632608,32743.0,32717.0,0.12254]
[1609869781446,0.13632608,32743.0,32707.0,4.6647]
[1609869781847,0.14335,32747.0,32738.0,0.13632608]
[1609869782246,0.3904,32754.0,32738.0,0.13632608]
[1609869782646,0.3904,32754.0,32723.0,4.1725]
[1609869783647,0.3904,32754.0,32715.0,0.11912]
[1609869783848,0.13632608,32724.0,32719.0,0.13632608]
[1609869784048,0.13632608,32724.0,32699.0,3.8777]
[1609869784248,0.13632608,32724.0,32694.0,2.10816415]
[1609869784650,0.13632608,32724.0,32687.0,7.07265683]
[1609869784847,0.13632608,32724.0,32687.0,2.11415683]
[1609869785448,0.22732608,32724.0,32686.0,2.11445358]
[1609869785848,0.091,32724.0,32712.0,0.13632608]
[1609869786249,0.091,32724.0,32696.0,0.1482]
[1609869787150,0.13901,32725.0,32702.0,4.3509]
[1609869787549,0.2885,32729.0,32702.0,4.3509]
[1609869787950,0.2885,32729.0,32728.0,0.13632608]
[1609869788157,0.55463428,32740.0,32728.0,0.13632608]
[1609869788955,0.55463428,32740.0,32728.0,0.25781608]
[1609869789951,0.55463428,32740.0,32733.0,0.13632608]
[1609869790354,0.85412084,32751.0,32733.0,0.13632608]
[1609869790953,0.2997,32751.0,32733.0,0.13632608]
[1609869791854,0.13632608,32740.0,32738.0,0.13632608]
[1609869792057,0.13632608,32740.0,32728.0,0.12149]
[1609869792453,0.13632608,32740.0,32716.0,0.12027]
[1609869793355,0.13632608,32740.0,32707.0,2.10100148]
[1609869793956,0.0902,32745.0,32728.0,0.13632608]
[1609869794157,0.13953,32746.0,32728.0,4.89982608]
[1609869794559,0.55509358,32755.0,32728.0,4.89982608]
[1609869795260,0.96977047,32758.0,32728.0,4.89982608]
[1609869795961,0.96977047,32758.0,32751.0,0.13632608]
[1609869796561,0.41327,32758.0,32751.0,0.13632608]
[1609869797960,0.41327,32758.0,32755.0,0.13632608]
[1609869798162,0.41327,32758.0,32745.0,0.12877]
[1609869799162,0.11737,32758.0,32745.0,0.12877]
[1609869799361,0.10494,32768.0,32745.0,0.12877]
[1609869799963,0.10494,32768.0,32762.0,0.13632608]
[1609869801563,0.2951,32773.0,32762.0,0.13632608]
[1609869801966,0.2951,32773.0,32768.0,0.13632608]
[1609869802867,0.0912,32772.0,32756.0,4.2491]
[1609869803067,0.0912,32772.0,32752.0,0.11032]
[1609869803967,0.0912,32772.0,32756.0,0.13632608]
[1609869804368,0.2951,32773.0,32756.0,0.13632608]
[1609869806072,0.13632608,32772.0,32768.0,0.13632608]
[1609869807173,0.2951,32773.0,32768.0,0.13632608]
[1609869807372,0.14959,32782.0,32768.0,0.13632608]
[1609869808072,0.14959,32782.0,32763.0,0.14396]
[1609869808073,0.14959,32782.0,32781.0,0.13632608]
[1609869809275,0.14959,32782.0,32763.0,0.14396]
[1609869811979,0.14959,32782.0,32777.0,0.13632608]
[1609869812379,0.0906,32781.0,32777.0,0.13632608]
[1609869812580,0.0911,32780.0,32763.0,0.14396]
[1609869812781,0.0911,32780.0,32752.0,0.11032]
[1609869813181,0.0911,32780.0,32745.0,0.12877]
[1609869813381,0.0911,32780.0,32743.0,3.4842]
[1609869813981,0.0911,32780.0,32753.0,0.13632608]
[1609869814181,0.0911,32780.0,32753.0,0.27922608]
[1609869815084,0.55555116,32779.0,32753.0,0.27922608]
[1609869815684,0.64667264,32780.0,32753.0,0.27922608]
[1609869815884,0.64667264,32780.0,32753.0,0.1429]
[1609869816083,0.13632608,32754.0,32753.0,0.1429]
[1609869819489,0.13632608,32754.0,32738.0,4.479]
[1609869820189,0.13632608,32750.0,32748.0,0.13632608]
[1609869821997,0.13632608,32750.0,32735.0,0.13576]
[1609869822195,4.5139,32752.0,32741.0,0.13632608]
[1609869823296,4.6056,32752.0,32741.0,0.07822608]
[1609869823494,4.6056,32752.0,32735.0,0.13576]
[1609869823793,4.6056,32752.0,32732.0,0.0915]
[1609869824195,4.71452,32752.0,32732.0,0.0915]
[1609869824396,4.71452,32752.0,32733.0,0.14529]
[1609869825399,0.10892,32752.0,32733.0,0.14529]
[1609869825800,0.13966,32759.0,32733.0,0.14529]
[1609869825999,0.091,32764.0,32733.0,0.14529]
[1609869826402,0.091,32764.0,32734.0,0.0906]
[1609869827903,0.2801,32775.0,32733.0,0.14529]
[1609869828105,0.55568614,32776.0,32733.0,0.14529]
[1609869828304,0.55568614,32776.0,32759.0,0.13632608]
[1609869828703,0.55568614,32776.0,32759.0,0.22929608]
[1609869829405,0.75798633,32777.0,32759.0,0.22929608]
[1609869829406,0.0912,32777.0,32760.0,0.0924]
[1609869830008,0.0912,32777.0,32759.0,0.22929608]
[1609869830210,0.13632608,32760.0,32759.0,0.09297]
[1609869830810,0.13632608,32760.0,32734.0,4.4829]
[1609869832210,3.5865,32767.0,32734.0,4.4829]
[1609869832609,3.6777,32767.0,32734.0,4.4829]
[1609869834209,3.6777,32767.0,32752.0,0.13632608]
[1609869836211,0.13632608,32753.0,32752.0,0.13632608]
[1609869836412,0.22862608,32753.0,32752.0,0.13632608]
[1609869836613,0.13632608,32753.0,32752.0,0.13632608]
[1609869837714,0.22712608,32753.0,32752.0,0.22722608]
[1609869837913,0.22712608,32753.0,32752.0,0.0909]
[1609869838114,0.13632608,32753.0,32746.0,0.09655]
[1609869838315,0.13475,32764.0,32748.0,0.13632608]
[1609869839115,0.13475,32764.0,32749.0,0.0923]
[1609869839716,0.13475,32764.0,32746.0,0.09655]
[1609869840017,0.13475,32764.0,32728.0,2.09146287]
[1609869840218,0.13475,32764.0,32744.0,0.13632608]
[1609869840416,0.13475,32764.0,32726.0,2.09420338]
[1609869841617,0.0909,32766.0,32726.0,2.09420338]
[1609869842118,0.0909,32766.0,32720.0,2.09936023]
[1609869842318,0.0909,32766.0,32740.0,0.13632608]
[1609869842720,0.0909,32766.0,32734.0,3.86882608]
[1609869843320,0.0909,32766.0,32728.0,0.0924]
[1609869843522,0.0909,32766.0,32719.0,2.1045084]
[1609869843721,4.0948,32758.0,32719.0,3.9925]
[1609869843925,0.0919,32757.0,32719.0,3.9925]
[1609869844320,0.0919,32757.0,32735.0,0.13632608]
[1609869844521,0.0919,32757.0,32736.0,0.092]
[1609869846225,0.13632608,32737.0,32736.0,0.092]
[1609869847325,0.13632608,32737.0,32735.0,0.25743608]
[1609869847326,0.22852608,32737.0,32735.0,0.25743608]
[1609869847726,0.13632608,32737.0,32735.0,0.25743608]
[1609869850128,0.0912,32737.0,32735.0,0.34883608]
[1609869851227,0.13632608,32741.0,32735.0,0.25743608]
[1609869851629,0.13632608,32741.0,32736.0,0.0919]
[1609869852229,0.0909,32740.0,32736.0,0.0919]
[1609869852434,0.0918,32739.0,32736.0,0.0919]
[1609869853230,0.0912,32744.0,32736.0,0.0919]
[1609869853429,3.6582,32766.0,32735.0,0.12111]
[1609869853631,3.6582,32766.0,32737.0,2.10477051]
[1609869854237,3.6582,32766.0,32757.0,0.13632608]
[1609869854436,3.6582,32766.0,32738.0,2.10421379]
[1609869854636,3.6582,32766.0,32757.0,0.09084]
[1609869854831,0.0922,32768.0,32757.0,0.09084]
[1609869856243,0.13632608,32758.0,32757.0,0.22716608]
[1609869858238,0.13632608,32758.0,32757.0,0.09084]
[1609869859939,0.22882608,32758.0,32749.0,0.13632608]
[1609869860340,0.13632608,32750.0,32749.0,0.13632608]
[1609869860741,0.13632608,32750.0,32739.0,0.0915]
[1609869860941,0.13632608,32750.0,32735.0,2.31774099]
[1609869861141,0.13632608,32750.0,32735.0,2.22604099]
[1609869861748,0.13632608,32750.0,32735.0,0.12111]
[1609869861944,0.13632608,32750.0,32731.0,2.10865123]
[1609869862445,3.7627,32752.0,32737.0,0.13632608]
[1609869862647,3.7627,32752.0,32737.0,0.28145608]
[1609869864348,0.13632608,32738.0,32737.0,0.28145608]
[1609869864549,0.13632608,32738.0,32737.0,0.14513]
[1609869867150,0.83882608,32738.0,32737.0,0.14513]
[1609869867849,0.83882608,32738.0,32728.0,0.0918]
[1609869868050,0.73882608,32738.0,32724.0,2.10532608]
[1609869868250,0.03632608,32738.0,32724.0,2.10532608]
[1609869868449,0.13632608,32725.0,32724.0,2.10532608]
[1609869868849,4.53382608,32725.0,32724.0,2.10532608]
[1609869869051,4.53382608,32725.0,32723.0,1.95751613]
[1609869869449,4.53382608,32725.0,32723.0,1.94231613]
[1609869869850,4.53382608,32725.0,32719.0,2.28314248]
[1609869870051,4.53382608,32725.0,32699.0,2.295514]
[1609869870250,0.0904,32724.0,32699.0,2.295514]
[1609869870450,0.0904,32724.0,32704.0,0.13632608]
[1609869870651,0.0904,32724.0,32704.0,0.23174608]
[1609869872453,0.13632608,32705.0,32704.0,0.23174608]
[1609869873856,0.12239,32726.0,32704.0,0.23174608]
[1609869874459,0.13632608,32720.0,32719.0,0.13632608]
[1609869876359,5.22212608,32720.0,32719.0,0.13632608]
[1609869877062,5.22212608,32720.0,32699.0,2.28322124]
[1609869877264,5.22212608,32720.0,32699.0,0.092]
[1609869878165,5.22212608,32720.0,32696.0,2.55827884]
[1609869878565,5.22212608,32720.0,32719.0,0.13632608]
[1609869878866,0.13632608,32720.0,32719.0,0.13632608]
[1609869879066,0.13632608,32720.0,32715.0,0.11368]
[1609869880469,0.13632608,32720.0,32719.0,0.13632608]
[1609869882473,3.6032,32730.0,32719.0,0.13632608]
[1609869883676,0.1224,32736.0,32719.0,0.13632608]
[1609869884078,0.0928,32737.0,32719.0,0.13632608]
[1609869884478,0.0928,32737.0,32725.0,0.13632608]
[1609869884679,0.0928,32737.0,32714.0,4.5826]
[1609869885582,0.19115,32737.0,32714.0,4.5826]
[1609869885882,0.19115,32737.0,32700.0,2.10552507]
[1609869886083,4.3341,32736.0,32702.0,2.10199969]
[1609869886382,4.3341,32736.0,32725.0,0.13632608]
[1609869886984,0.19115,32737.0,32725.0,0.13632608]
[1609869887184,0.19115,32737.0,32719.0,0.11033]
[1609869887585,0.09835,32737.0,32719.0,0.11033]
[1609869887986,4.8827,32746.0,32719.0,0.11033]
[1609869888585,0.01872369,32750.0,32740.0,0.13632608]
[1609869890486,0.01872369,32750.0,32749.0,0.13632608]
[1609869890686,0.01872369,32750.0,32749.0,0.24988608]
[1609869891086,0.57503584,32751.0,32749.0,0.24988608]
[1609869892187,0.57503584,32751.0,32749.0,0.11356]
[1609869892386,4.3761,32750.0,32749.0,0.11356]
[1609869892588,4.60462608,32750.0,32734.0,0.11451]
[1609869892787,4.51242608,32750.0,32734.0,0.11451]
[1609869893689,4.51242608,32750.0,32726.0,3.8581]
[1609869894389,4.3761,32750.0,32735.0,0.13632608]
[1609869895691,0.0905,32749.0,32735.0,0.13632608]
[1609869896193,4.3761,32750.0,32735.0,0.13632608]
[1609869897495,0.0919,32749.0,32735.0,0.13632608]
[1609869897695,4.3761,32750.0,32735.0,0.13632608]
[1609869898597,0.13632608,32736.0,32735.0,0.13632608]
[1609869899297,0.13636,32748.0,32738.0,5.1141]
[1609869900098,0.01872751,32760.0,32738.0,5.1141]
[1609869900499,0.01872751,32760.0,32754.0,0.13632608]
[1609869901100,0.01872387,32769.0,32754.0,0.13632608]
[1609869902000,0.0921,32768.0,32754.0,0.13632608]
[1609869902400,0.09209,32768.0,32754.0,0.13632608]
[1609869902601,0.13632608,32755.0,32754.0,0.13632608]
[1609869903001,0.13632608,32755.0,32749.0,0.09966]
[1609869904505,0.13632608,32750.0,32749.0,0.09966]
[1609869905605,0.09209,32768.0,32749.0,0.09966]
[1609869906005,0.09209,32768.0,32748.0,0.13632608]
[1609869906205,0.09209,32768.0,32748.0,0.23684608]
[1609869906605,0.13632608,32753.0,32748.0,0.23684608]
[1609869908509,0.13632608,32749.0,32748.0,0.23684608]
[1609869908709,0.13632608,32749.0,32748.0,0.10052]
[1609869909311,0.22682608,32749.0,32748.0,0.10052]
[1609869909512,0.13632608,32749.0,32739.0,0.2745]
[1609869910511,0.13632608,32740.0,32739.0,0.41082608]
[1609869910912,0.13632608,32740.0,32739.0,0.13632608]
[1609869911717,0.13632608,32740.0,32733.0,0.09832]
[1609869911915,0.13632608,32740.0,32724.0,4.5975]
[1609869912516,0.13632608,32732.0,32731.0,0.13632608]
[1609869912916,0.11516,32749.0,32731.0,0.28266608]
[1609869913317,0.01871676,32759.0,32731.0,0.28266608]
[1609869913517,0.01871676,32759.0,32740.0,4.7606]
[1609869914520,0.09884,32761.0,32749.0,0.13632608]
[1609869914721,0.01871123,32766.0,32749.0,0.13632608]
[1609869915121,0.01871219,32772.0,32749.0,0.13632608]
[1609869915722,0.57511305,32771.0,32749.0,0.13632608]